[Event "*** Titled Tuesday Blitz"]
[Site "Chess.com"]
[Date "2019.01.01"]
[Round "9"]
[White "KenanGarayev"]
[Black "Matibar"]
[Result "1-0"]
[WhiteElo "2863"]
[BlackElo "2795"]
[TimeControl "180+2"]
[EndTime "15:09:11 PST"]
[Termination "KenanGarayev won by resignation"]

1. d4 {[%clk 0:03:01.9]} 1... d5 {[%clk 0:02:56.2]} 2. c4 {[%clk 0:03:03.8]}
2... e6 {[%clk 0:02:57.7]} 3. Nf3 {[%clk 0:03:01.8]} 3... a6 {[%clk 0:02:57.2]}
4. e3 {[%clk 0:02:55.3]} 4... Nf6 {[%clk 0:02:56.3]} 5. Nc3 {[%clk 0:02:55.2]}
5... dxc4 {[%clk 0:02:56.4]} 6. Bxc4 {[%clk 0:02:54.5]} 6... b5 {[%clk
0:02:57.3]} 7. Bd3 {[%clk 0:02:53.3]} 7... c5 {[%clk 0:02:57.5]} 8. dxc5 {[%clk
0:02:49.9]} 8... Bxc5 {[%clk 0:02:55.7]} 9. O-O {[%clk 0:02:51.2]} 9... Bb7
{[%clk 0:02:56]} 10. Qe2 {[%clk 0:02:48.2]} 10... Nbd7 {[%clk 0:02:56.5]} 11. e4
{[%clk 0:02:46.1]} 11... e5 {[%clk 0:02:48.6]} 12. Bg5 {[%clk 0:02:43.3]} 12...
h6 {[%clk 0:02:49.2]} 13. Bxf6 {[%clk 0:02:41]} 13... Qxf6 {[%clk 0:02:47.3]}
14. a4 {[%clk 0:02:40]} 14... b4 {[%clk 0:02:41.3]} 15. Nd5 {[%clk 0:02:39.9]}
15... Bxd5 {[%clk 0:02:42.7]} 16. exd5 {[%clk 0:02:40.6]} 16... O-O {[%clk
0:02:44.3]} 17. Nd2 {[%clk 0:02:36.1]} 17... Bd4 {[%clk 0:02:42.9]} 18. Ne4
{[%clk 0:02:32.5]} 18... Qd8 {[%clk 0:02:20.9]} 19. Bxa6 {[%clk 0:02:30.2]}
19... f5 {[%clk 0:02:09.3]} 20. Nd2 {[%clk 0:02:22.3]} 20... Nc5 {[%clk
0:02:09.8]} 21. Bb5 {[%clk 0:02:17.9]} 21... Bxb2 {[%clk 0:02:10.6]} 22. Rab1
{[%clk 0:02:15.5]} 22... Bc3 {[%clk 0:02:11]} 23. Nc4 {[%clk 0:02:16.1]} 23...
e4 {[%clk 0:02:07.4]} 24. Rfd1 {[%clk 0:02:13.1]} 24... Nxa4 {[%clk 0:02:07.1]}
25. d6 {[%clk 0:02:14.1]} 25... Nb6 {[%clk 0:02:05.8]} 26. d7 {[%clk 0:02:11.1]}
26... Nxc4 {[%clk 0:02:02.3]} 27. Qxc4+ {[%clk 0:02:08]} 27... Kh8 {[%clk
0:02:04.2]} 28. Rd6 {[%clk 0:01:56.1]} 28... Qg5 {[%clk 0:01:57.5]} 29. Qc5
{[%clk 0:01:46.8]} 29... Rad8 {[%clk 0:01:54.7]} 30. Re6 {[%clk 0:01:44.6]}
30... f4 {[%clk 0:01:33.6]} 31. Qxg5 {[%clk 0:01:41.9]} 31... hxg5 {[%clk
0:01:35.5]} 32. Rxe4 {[%clk 0:01:43.7]} 32... Kh7 {[%clk 0:01:32.5]} 33. Re8
{[%clk 0:01:41.2]} 33... Kg6 {[%clk 0:01:27.2]} 34. Kf1 {[%clk 0:01:37.9]} 34...
Kf7 {[%clk 0:01:21.7]} 35. Ke2 {[%clk 0:01:36.1]} 35... Rb8 {[%clk 0:01:18.3]}
36. Kf3 {[%clk 0:01:32]} 36... Kf6 {[%clk 0:01:02.8]} 37. Kg4 {[%clk 0:01:29.9]}
37... Rd8 {[%clk 0:00:49]} 38. Rd1 {[%clk 0:01:22.1]} 38... Kf7 {[%clk
0:00:43.4]} 39. Kxg5 {[%clk 0:01:20.5]} 39... Bf6+ {[%clk 0:00:43.6]} 40. Kxf4
{[%clk 0:01:21.5]} 40... g6 {[%clk 0:00:42]} 41. g3 {[%clk 0:01:17.8]} 41... Kg7
{[%clk 0:00:43.2]} 42. Kg4 {[%clk 0:01:14.9]} 42... b3 {[%clk 0:00:40.6]} 43. h4
{[%clk 0:01:07.7]} 43... b2 {[%clk 0:00:41.7]} 44. Bc6 {[%clk 0:01:07]} 44...
Rb8 {[%clk 0:00:38.8]} 45. Rb1 {[%clk 0:01:07.4]} 45... Rb6 {[%clk 0:00:37.4]}
46. f4 {[%clk 0:01:03.6]} 46... Rxc6 {[%clk 0:00:36.9]} 47. Rxb2 {[%clk
0:01:04.2]} 47... Rd6 {[%clk 0:00:32.4]} 48. Rbb8 {[%clk 0:01:02.2]} 48... Rf7
{[%clk 0:00:30.9]} 49. d8=Q {[%clk 0:01:03.5]} 49... Bxd8 {[%clk 0:00:28]} 50.
Rbxd8 {[%clk 0:01:05.4]} 50... Rxd8 {[%clk 0:00:29.4]} 51. Rxd8 {[%clk
0:01:05.7]} 51... Rf5 {[%clk 0:00:30.6]} 52. Rd7+ {[%clk 0:01:04.9]} 52... Kf6
{[%clk 0:00:30.7]} 53. Kf3 {[%clk 0:01:04.7]} 53... Ra5 {[%clk 0:00:31.4]} 54.
Rd3 {[%clk 0:01:05.4]} 54... Ra1 {[%clk 0:00:31.3]} 55. Kg4 {[%clk 0:01:03.5]}
55... Ra5 {[%clk 0:00:31.6]} 56. Rd6+ {[%clk 0:01:01.8]} 56... Kf7 {[%clk
0:00:32.9]} 57. Rd7+ {[%clk 0:01:01.6]} 57... Kf6 {[%clk 0:00:34.2]} 58. Rh7
{[%clk 0:01:01.4]} 1-0

[Event "*** Titled Tuesday Blitz"]
[Site "Chess.com"]
[Date "2019.01.01"]
[Round "9"]
[White "biostatistician"]
[Black "maziarbagheri"]
[Result "1/2-1/2"]
[WhiteElo "2453"]
[BlackElo "2368"]
[TimeControl "180+2"]
[EndTime "15:09:13 PST"]
[Termination "Game drawn - insufficient material"]

1. d4 {[%clk 0:03:01.9]} 1... d5 {[%clk 0:00:14.7]} 2. Nf3 {[%clk 0:03:03.8]}
2... c6 {[%clk 0:00:15.4]} 3. c4 {[%clk 0:03:00.5]} 3... Nf6 {[%clk 0:00:16.6]}
4. cxd5 {[%clk 0:03:00.7]} 4... cxd5 {[%clk 0:00:18.5]} 5. Nc3 {[%clk
0:03:01.6]} 5... Nc6 {[%clk 0:00:20]} 6. Bf4 {[%clk 0:03:02.5]} 6... Bf5 {[%clk
0:00:20.2]} 7. e3 {[%clk 0:03:04]} 7... e6 {[%clk 0:00:21.2]} 8. Qb3 {[%clk
0:03:05.2]} 8... Qb6 {[%clk 0:00:21.1]} 9. Qxb6 {[%clk 0:03:04.1]} 9... axb6
{[%clk 0:00:23]} 10. Bb5 {[%clk 0:03:04.9]} 10... Rc8 {[%clk 0:00:22.4]} 11. Ne5
{[%clk 0:03:05.1]} 11... Nd7 {[%clk 0:00:21.7]} 12. Nxc6 {[%clk 0:02:41]} 12...
bxc6 {[%clk 0:00:21.8]} 13. Ba6 {[%clk 0:02:42.6]} 13... Ra8 {[%clk 0:00:19.7]}
14. Bb7 {[%clk 0:02:43.1]} 14... Ra7 {[%clk 0:00:20.1]} 15. Bxc6 {[%clk
0:02:43.4]} 15... Bb4 {[%clk 0:00:20.8]} 16. Ke2 {[%clk 0:02:35]} 16... Bxc3
{[%clk 0:00:21.1]} 17. bxc3 {[%clk 0:02:36.9]} 17... Ra3 {[%clk 0:00:22.2]} 18.
Rhc1 {[%clk 0:02:32.8]} 18... Ke7 {[%clk 0:00:22.4]} 19. f3 {[%clk 0:02:08.3]}
19... Rc8 {[%clk 0:00:22.1]} 20. Bb7 {[%clk 0:02:07.6]} 20... Rcxc3 {[%clk
0:00:22.3]} 21. Rxc3 {[%clk 0:02:07.7]} 21... Rxc3 {[%clk 0:00:24.2]} 22. e4
{[%clk 0:02:06.2]} 22... dxe4 {[%clk 0:00:24.1]} 23. fxe4 {[%clk 0:02:08.1]}
23... Bg4+ {[%clk 0:00:25]} 24. Kd2 {[%clk 0:02:08.6]} 24... Ra3 {[%clk
0:00:26.3]} 25. Bc6 {[%clk 0:01:44]} 25... f6 {[%clk 0:00:18.5]} 26. Bb5 {[%clk
0:01:19.3]} 26... e5 {[%clk 0:00:17.6]} 27. Be3 {[%clk 0:01:17]} 27... exd4
{[%clk 0:00:16.3]} 28. Bxd4 {[%clk 0:01:18.9]} 28... Nc5 {[%clk 0:00:17.6]} 29.
Bxc5+ {[%clk 0:01:16.6]} 29... bxc5 {[%clk 0:00:18.3]} 30. Bc4 {[%clk 0:01:18]}
30... Be6 {[%clk 0:00:18.6]} 31. Bxe6 {[%clk 0:01:04.8]} 31... Kxe6 {[%clk
0:00:20.5]} 32. Kc2 {[%clk 0:01:06.1]} 32... Ke5 {[%clk 0:00:20.9]} 33. Kb2
{[%clk 0:01:07.4]} 33... Re3 {[%clk 0:00:21.4]} 34. a4 {[%clk 0:01:09.3]} 34...
Rxe4 {[%clk 0:00:20.2]} 35. a5 {[%clk 0:01:10.6]} 35... Rb4+ {[%clk 0:00:21.5]}
36. Kc3 {[%clk 0:01:11.3]} 36... Kd5 {[%clk 0:00:21.5]} 37. a6 {[%clk
0:01:11.7]} 37... Rb8 {[%clk 0:00:23]} 38. a7 {[%clk 0:00:35.5]} 38... Ra8
{[%clk 0:00:22.8]} 39. Ra6 {[%clk 0:00:37.1]} 39... f5 {[%clk 0:00:22.7]} 40. h4
{[%clk 0:00:36]} 40... g6 {[%clk 0:00:21.9]} 41. g3 {[%clk 0:00:36.4]} 41... Ke4
{[%clk 0:00:22.6]} 42. Kc4 {[%clk 0:00:35.8]} 42... Kf3 {[%clk 0:00:23.8]} 43.
Ra3+ {[%clk 0:00:35.9]} 43... Kg4 {[%clk 0:00:22]} 44. Kxc5 {[%clk 0:00:37.8]}
44... h6 {[%clk 0:00:23.2]} 45. Kb6 {[%clk 0:00:34.8]} 45... g5 {[%clk
0:00:24.5]} 46. hxg5 {[%clk 0:00:33.7]} 46... hxg5 {[%clk 0:00:26.4]} 47. Kb7
{[%clk 0:00:35]} 47... Rxa7+ {[%clk 0:00:27.4]} 48. Kxa7 {[%clk 0:00:35.6]}
48... f4 {[%clk 0:00:29.3]} 49. gxf4 {[%clk 0:00:36.5]} 49... gxf4 {[%clk
0:00:31.2]} 50. Kb6 {[%clk 0:00:37.6]} 50... f3 {[%clk 0:00:32.6]} 51. Kc5
{[%clk 0:00:38.5]} 51... f2 {[%clk 0:00:34]} 52. Ra1 {[%clk 0:00:39.8]} 52...
Kf3 {[%clk 0:00:35.2]} 53. Kd4 {[%clk 0:00:40.8]} 53... Kg2 {[%clk 0:00:32.7]}
54. Ke3 {[%clk 0:00:41]} 54... f1=Q {[%clk 0:00:33.6]} 55. Rxf1 {[%clk
0:00:41.8]} 55... Kxf1 {[%clk 0:00:35.5]} 1/2-1/2

[Event "*** Titled Tuesday Blitz"]
[Site "Chess.com"]
[Date "2019.01.01"]
[Round "9"]
[White "Manukyan_Artak"]
[Black "mersad_98"]
[Result "1-0"]
[WhiteElo "2400"]
[BlackElo "2629"]
[TimeControl "180+2"]
[EndTime "15:09:14 PST"]
[Termination "Manukyan_Artak won by resignation"]

1. e4 {[%clk 0:03:01.9]} 1... e5 {[%clk 0:03:00.3]} 2. Nf3 {[%clk 0:03:02.5]}
2... Nf6 {[%clk 0:03:01.9]} 3. Nxe5 {[%clk 0:03:02.6]} 3... d6 {[%clk
0:03:03.5]} 4. Nf3 {[%clk 0:03:03.8]} 4... Nxe4 {[%clk 0:02:55.4]} 5. Nc3 {[%clk
0:03:05]} 5... Nxc3 {[%clk 0:02:56]} 6. dxc3 {[%clk 0:03:06.9]} 6... Be7 {[%clk
0:02:56.9]} 7. Be3 {[%clk 0:03:06.6]} 7... O-O {[%clk 0:02:44.9]} 8. Qd2 {[%clk
0:03:04]} 8... Nd7 {[%clk 0:02:45.4]} 9. O-O-O {[%clk 0:03:01.3]} 9... Nf6
{[%clk 0:02:40.1]} 10. Bd3 {[%clk 0:03:00.2]} 10... c5 {[%clk 0:02:41.6]} 11. h4
{[%clk 0:02:57.5]} 11... Be6 {[%clk 0:02:38.5]} 12. a3 {[%clk 0:02:54]} 12...
Qa5 {[%clk 0:02:08]} 13. Ng5 {[%clk 0:02:48.5]} 13... b5 {[%clk 0:02:03.6]} 14.
Nxe6 {[%clk 0:02:29.9]} 14... fxe6 {[%clk 0:02:05.5]} 15. g4 {[%clk 0:02:21]}
15... c4 {[%clk 0:02:01]} 16. Be2 {[%clk 0:02:20.7]} 16... Ne4 {[%clk
0:01:59.9]} 17. Qd4 {[%clk 0:02:17.5]} 17... d5 {[%clk 0:02:01.5]} 18. Qe5
{[%clk 0:02:07.9]} 18... Bxa3 {[%clk 0:01:52.1]} 19. Rxd5 {[%clk 0:01:34.3]}
19... exd5 {[%clk 0:01:28.4]} 20. Qxd5+ {[%clk 0:01:32]} 20... Kh8 {[%clk
0:01:29.9]} 21. Qxe4 {[%clk 0:01:27]} 21... Qxc3 {[%clk 0:01:30.9]} 22. bxa3
{[%clk 0:01:23.4]} 22... Qa1+ {[%clk 0:01:31.7]} 23. Kd2 {[%clk 0:01:24.1]}
23... Rad8+ {[%clk 0:01:32.9]} 24. Bd3 {[%clk 0:01:17.4]} 24... Rxd3+ {[%clk
0:01:10]} 25. cxd3 {[%clk 0:01:17.4]} 25... c3+ {[%clk 0:01:05.8]} 26. Ke2
{[%clk 0:01:14.8]} 26... Qxa3 {[%clk 0:00:37.1]} 27. Rc1 {[%clk 0:01:08.3]}
27... b4 {[%clk 0:00:35.8]} 28. Kf1 {[%clk 0:01:01.7]} 28... Qb2 {[%clk
0:00:23.5]} 29. Qd4 {[%clk 0:00:44.5]} 29... a5 {[%clk 0:00:16.8]} 30. h5 {[%clk
0:00:42]} 30... Qb3 {[%clk 0:00:11.3]} 31. h6 {[%clk 0:00:39.2]} 31... Qf7
{[%clk 0:00:12.8]} 32. Ra1 {[%clk 0:00:32]} 32... Kg8 {[%clk 0:00:08.7]} 33.
Qxg7+ {[%clk 0:00:26.6]} 33... Qxg7 {[%clk 0:00:08.9]} 34. hxg7 {[%clk
0:00:28.5]} 34... Rb8 {[%clk 0:00:10.1]} 35. Bd4 {[%clk 0:00:20.1]} 35... c2
{[%clk 0:00:11.5]} 36. Bb2 {[%clk 0:00:20.9]} 36... Rc8 {[%clk 0:00:11.1]} 37.
Ke2 {[%clk 0:00:20.5]} 37... b3 {[%clk 0:00:12.6]} 38. Kd2 {[%clk 0:00:21.5]}
38... Rc5 {[%clk 0:00:14.1]} 39. d4 {[%clk 0:00:21.6]} 39... Rg5 {[%clk
0:00:13.9]} 40. f3 {[%clk 0:00:21.1]} 40... Kxg7 {[%clk 0:00:15]} 41. d5+ {[%clk
0:00:22.4]} 41... Kf7 {[%clk 0:00:16.6]} 42. Rxa5 {[%clk 0:00:23.7]} 42... Ke7
{[%clk 0:00:17.7]} 43. d6+ {[%clk 0:00:24.4]} 43... Kxd6 {[%clk 0:00:18.7]} 44.
Rxg5 {[%clk 0:00:26.3]} 1-0

[Event "*** Titled Tuesday Blitz"]
[Site "Chess.com"]
[Date "2019.01.01"]
[Round "9"]
[White "nihalsarin"]
[Black "BartoszSocko"]
[Result "1-0"]
[WhiteElo "2946"]
[BlackElo "2671"]
[TimeControl "180+2"]
[EndTime "15:09:22 PST"]
[Termination "nihalsarin won by resignation"]

1. d4 {[%clk 0:02:56.8]} 1... Nf6 {[%clk 0:03:00.7]} 2. Bg5 {[%clk 0:02:58.3]}
2... e6 {[%clk 0:03:01.2]} 3. e4 {[%clk 0:02:58.7]} 3... h6 {[%clk 0:03:01.6]}
4. Bxf6 {[%clk 0:03:00.2]} 4... Qxf6 {[%clk 0:03:03.5]} 5. c3 {[%clk 0:03:01.6]}
5... d5 {[%clk 0:03:04.7]} 6. Nd2 {[%clk 0:03:01.7]} 6... Qd8 {[%clk 0:02:57.9]}
7. Ngf3 {[%clk 0:03:02.8]} 7... c5 {[%clk 0:02:58.9]} 8. Bd3 {[%clk 0:03:02.4]}
8... cxd4 {[%clk 0:02:58.8]} 9. Nxd4 {[%clk 0:03:02.4]} 9... Nc6 {[%clk
0:02:59.4]} 10. N4f3 {[%clk 0:02:58]} 10... Be7 {[%clk 0:02:56.9]} 11. Qe2
{[%clk 0:02:59]} 11... d4 {[%clk 0:02:52.6]} 12. e5 {[%clk 0:02:43.4]} 12...
dxc3 {[%clk 0:02:52.8]} 13. bxc3 {[%clk 0:02:45.3]} 13... O-O {[%clk 0:02:48.1]}
14. O-O {[%clk 0:02:46]} 14... Qc7 {[%clk 0:02:38.4]} 15. h4 {[%clk 0:02:42.8]}
15... h5 {[%clk 0:02:28.1]} 16. Rad1 {[%clk 0:02:34.7]} 16... Rd8 {[%clk
0:02:28.4]} 17. Nc4 {[%clk 0:02:18]} 17... b6 {[%clk 0:02:14.2]} 18. Qe4 {[%clk
0:01:48]} 18... g6 {[%clk 0:02:15]} 19. Ng5 {[%clk 0:01:49.6]} 19... Bxg5 {[%clk
0:01:58]} 20. hxg5 {[%clk 0:01:51.5]} 20... Bb7 {[%clk 0:01:38.2]} 21. Nd6
{[%clk 0:01:39]} 21... Na5 {[%clk 0:01:39.1]} 22. Qf4 {[%clk 0:01:37.2]} 22...
Qe7 {[%clk 0:01:25]} 23. c4 {[%clk 0:01:26.5]} 23... Bc6 {[%clk 0:01:21.9]} 24.
Rfe1 {[%clk 0:01:22.6]} 24... Nb7 {[%clk 0:01:19.6]} 25. Be4 {[%clk 0:01:16.3]}
25... Bxe4 {[%clk 0:01:20.1]} 26. Nxe4 {[%clk 0:01:18.2]} 26... Rac8 {[%clk
0:01:05]} 27. g4 {[%clk 0:01:02.3]} 27... h4 {[%clk 0:00:45.6]} 28. Kg2 {[%clk
0:00:24.8]} 28... Kg7 {[%clk 0:00:46]} 29. Nd6 {[%clk 0:00:20.1]} 29... Rc7
{[%clk 0:00:28.1]} 30. Qf6+ {[%clk 0:00:17.5]} 30... Qxf6 {[%clk 0:00:21.4]} 31.
gxf6+ {[%clk 0:00:19.4]} 31... Kg8 {[%clk 0:00:22.9]} 32. Nxb7 {[%clk
0:00:19.6]} 32... Rxd1 {[%clk 0:00:23.8]} 33. Rxd1 {[%clk 0:00:21.5]} 33... Rxb7
{[%clk 0:00:25.4]} 34. Rd8+ {[%clk 0:00:22.9]} 34... Kh7 {[%clk 0:00:26.8]} 35.
g5 {[%clk 0:00:24.8]} 35... Rc7 {[%clk 0:00:27]} 36. Rf8 {[%clk 0:00:26.1]}
36... a5 {[%clk 0:00:25.4]} 37. Kh3 {[%clk 0:00:25.6]} 37... a4 {[%clk
0:00:25.6]} 38. f4 {[%clk 0:00:27]} 38... a3 {[%clk 0:00:25.5]} 39. Kxh4 {[%clk
0:00:27.1]} 39... Rxc4 {[%clk 0:00:24.4]} 40. Rxf7+ {[%clk 0:00:27.8]} 40... Kh8
{[%clk 0:00:26.1]} 41. Kg4 {[%clk 0:00:23]} 41... Rc2 {[%clk 0:00:25.5]} 42. Ra7
{[%clk 0:00:23.1]} 42... Kg8 {[%clk 0:00:23.5]} 43. Rxa3 {[%clk 0:00:22.8]}
43... b5 {[%clk 0:00:25]} 44. Ra8+ {[%clk 0:00:24.1]} 44... Kf7 {[%clk
0:00:26.2]} 45. Ra7+ {[%clk 0:00:25.6]} 45... Kf8 {[%clk 0:00:27.5]} 46. Rg7
{[%clk 0:00:25.1]} 46... Rg2+ {[%clk 0:00:25]} 47. Kf3 {[%clk 0:00:26]} 47...
Rxa2 {[%clk 0:00:26]} 48. Rxg6 {[%clk 0:00:27.6]} 48... Ra3+ {[%clk 0:00:20.8]}
49. Kg4 {[%clk 0:00:28.2]} 49... b4 {[%clk 0:00:21.4]} 50. Rg7 {[%clk
0:00:29.6]} 50... b3 {[%clk 0:00:16]} 51. Rb7 {[%clk 0:00:30.9]} 1-0

[Event "*** Titled Tuesday Blitz"]
[Site "Chess.com"]
[Date "2019.01.01"]
[Round "9"]
[White "juniortay"]
[Black "Chessialist"]
[Result "1-0"]
[WhiteElo "2423"]
[BlackElo "2528"]
[TimeControl "180+2"]
[EndTime "15:09:22 PST"]
[Termination "juniortay won by checkmate"]

1. e4 {[%clk 0:03:01.9]} 1... c5 {[%clk 0:02:59.5]} 2. Nc3 {[%clk 0:03:02.6]}
2... Nc6 {[%clk 0:02:59.1]} 3. f4 {[%clk 0:03:03.7]} 3... e6 {[%clk 0:02:59.8]}
4. Nf3 {[%clk 0:03:04.9]} 4... g6 {[%clk 0:03:01.4]} 5. Bc4 {[%clk 0:02:54.3]}
5... Bg7 {[%clk 0:03:02]} 6. f5 {[%clk 0:02:48.9]} 6... Nge7 {[%clk 0:02:59.4]}
7. fxe6 {[%clk 0:02:49.5]} 7... dxe6 {[%clk 0:02:58.8]} 8. O-O {[%clk
0:02:44.2]} 8... O-O {[%clk 0:02:59.6]} 9. d3 {[%clk 0:02:44.5]} 9... Nd4 {[%clk
0:03:00.7]} 10. Kh1 {[%clk 0:02:39]} 10... Nec6 {[%clk 0:03:01.1]} 11. Bb3
{[%clk 0:02:38.2]} 11... b5 {[%clk 0:02:58.8]} 12. Bg5 {[%clk 0:02:29]} 12...
Qc7 {[%clk 0:02:49.8]} 13. Qe1 {[%clk 0:02:19.7]} 13... Bb7 {[%clk 0:02:38]} 14.
Qh4 {[%clk 0:02:18.7]} 14... a5 {[%clk 0:02:16.6]} 15. a4 {[%clk 0:01:59.6]}
15... Nxb3 {[%clk 0:02:14.6]} 16. cxb3 {[%clk 0:01:58.8]} 16... b4 {[%clk
0:02:15.7]} 17. Nd1 {[%clk 0:01:34.6]} 17... Ba6 {[%clk 0:02:12.8]} 18. Nf2
{[%clk 0:01:32]} 18... f6 {[%clk 0:01:52]} 19. Be3 {[%clk 0:01:23.9]} 19... Nb8
{[%clk 0:01:38.9]} 20. Rac1 {[%clk 0:01:17]} 20... Nd7 {[%clk 0:01:39.8]} 21.
Rfd1 {[%clk 0:01:10.7]} 21... Rac8 {[%clk 0:01:13.9]} 22. d4 {[%clk 0:00:50]}
22... Be2 {[%clk 0:01:14.5]} 23. Rd2 {[%clk 0:00:49.9]} 23... Bxf3 {[%clk
0:01:15.7]} 24. gxf3 {[%clk 0:00:51.2]} 24... Rfd8 {[%clk 0:01:05.7]} 25. dxc5
{[%clk 0:00:44.3]} 25... Ne5 {[%clk 0:01:06.8]} 26. Rxd8+ {[%clk 0:00:31.7]}
26... Rxd8 {[%clk 0:01:08.7]} 27. Qg3 {[%clk 0:00:32.9]} 27... Qc6 {[%clk
0:01:06.2]} 28. Bf4 {[%clk 0:00:27.7]} 28... Nd3 {[%clk 0:01:07.4]} 29. Nxd3
{[%clk 0:00:27.3]} 29... Rxd3 {[%clk 0:01:09.3]} 30. Bd6 {[%clk 0:00:16.2]}
30... f5 {[%clk 0:01:10.2]} 31. Qg5 {[%clk 0:00:15.9]} 31... Qc8 {[%clk
0:00:56.1]} 32. Qe7 {[%clk 0:00:16.4]} 32... Bxb2 {[%clk 0:00:37.1]} 33. Rc2
{[%clk 0:00:13.7]} 33... Bc3 {[%clk 0:00:35.8]} 34. c6 {[%clk 0:00:13.6]} 34...
h5 {[%clk 0:00:12.4]} 35. c7 {[%clk 0:00:14.2]} 35... Rd1+ {[%clk 0:00:13.6]}
36. Kg2 {[%clk 0:00:14.1]} 36... Qa6 {[%clk 0:00:15.5]} 37. Qf8+ {[%clk
0:00:10.3]} 37... Kh7 {[%clk 0:00:16.6]} 38. Qf7+ {[%clk 0:00:06.5]} 38... Bg7
{[%clk 0:00:17.6]} 39. Rf2 {[%clk 0:00:05.9]} 39... Qxd6 {[%clk 0:00:10.5]} 40.
c8=Q {[%clk 0:00:05.9]} 40... Rd2 {[%clk 0:00:11.6]} 41. Qcg8+ {[%clk
0:00:06.3]} 41... Kh6 {[%clk 0:00:13]} 42. Qgxg7+ {[%clk 0:00:07.6]} 42... Kg5
{[%clk 0:00:14.6]} 43. Qgxg6+ {[%clk 0:00:08.7]} 43... Kf4 {[%clk 0:00:16.5]}
44. Qh6+ {[%clk 0:00:07]} 44... Ke5 {[%clk 0:00:13.4]} 45. Qfg7# {[%clk
0:00:08.2]} 1-0

[Event "*** Titled Tuesday Blitz"]
[Site "Chess.com"]
[Date "2019.01.01"]
[Round "9"]
[White "Winehouse83"]
[Black "Fluffey"]
[Result "0-1"]
[WhiteElo "2397"]
[BlackElo "2463"]
[TimeControl "180+2"]
[EndTime "15:09:28 PST"]
[Termination "Fluffey won by resignation"]

1. d4 {[%clk 0:03:01.9]} 1... Nf6 {[%clk 0:03:00.4]} 2. c4 {[%clk 0:03:02.7]}
2... e6 {[%clk 0:03:01.4]} 3. Nf3 {[%clk 0:03:03.5]} 3... c5 {[%clk 0:03:02.1]}
4. d5 {[%clk 0:03:04.3]} 4... b5 {[%clk 0:03:03.3]} 5. Qc2 {[%clk 0:02:59.2]}
5... b4 {[%clk 0:02:48.7]} 6. e4 {[%clk 0:02:58.2]} 6... d6 {[%clk 0:02:49.7]}
7. a3 {[%clk 0:02:25.5]} 7... Be7 {[%clk 0:02:34.8]} 8. g3 {[%clk 0:02:04.8]}
8... O-O {[%clk 0:02:34.6]} 9. Bg2 {[%clk 0:02:05.9]} 9... exd5 {[%clk
0:02:28.7]} 10. exd5 {[%clk 0:02:05.6]} 10... Nbd7 {[%clk 0:02:23.4]} 11. h3
{[%clk 0:02:00.4]} 11... Re8 {[%clk 0:02:23.4]} 12. O-O {[%clk 0:02:01.3]} 12...
a5 {[%clk 0:02:19.3]} 13. a4 {[%clk 0:01:56.8]} 13... Bf8 {[%clk 0:02:09.5]} 14.
b3 {[%clk 0:01:57.5]} 14... Ne5 {[%clk 0:02:01.6]} 15. Nxe5 {[%clk 0:01:47.6]}
15... Rxe5 {[%clk 0:02:03.5]} 16. Bb2 {[%clk 0:01:46.1]} 16... Bf5 {[%clk
0:02:04]} 17. Qd1 {[%clk 0:01:44]} 17... Re8 {[%clk 0:02:04.2]} 18. Nd2 {[%clk
0:01:20.4]} 18... Qd7 {[%clk 0:01:48.1]} 19. Bxf6 {[%clk 0:01:14.1]} 19... gxf6
{[%clk 0:01:50]} 20. Kh2 {[%clk 0:01:11.1]} 20... Bd3 {[%clk 0:01:47.6]} 21. Re1
{[%clk 0:01:07.8]} 21... Rxe1 {[%clk 0:01:48.5]} 22. Qxe1 {[%clk 0:01:08.2]}
22... Re8 {[%clk 0:01:50.2]} 23. Qd1 {[%clk 0:01:09.5]} 23... Qf5 {[%clk
0:01:44.3]} 24. Nf3 {[%clk 0:00:48.8]} 24... Bc2 {[%clk 0:01:31.3]} 25. Qd2
{[%clk 0:00:21.8]} 25... Bxb3 {[%clk 0:01:29.9]} 26. Nh4 {[%clk 0:00:21.8]}
26... Qe5 {[%clk 0:01:23.3]} 27. Rc1 {[%clk 0:00:15.8]} 27... Bxa4 {[%clk
0:01:18.4]} 28. Nf3 {[%clk 0:00:13.6]} 28... Qe2 {[%clk 0:01:14.5]} 29. Qf4
{[%clk 0:00:13.4]} 29... Qxf2 {[%clk 0:01:09.4]} 30. Rf1 {[%clk 0:00:13.7]}
30... Qe3 {[%clk 0:01:06.1]} 31. Qxf6 {[%clk 0:00:14.6]} 31... Be7 {[%clk
0:00:52.2]} 32. Qf5 {[%clk 0:00:11]} 32... b3 {[%clk 0:00:37.2]} 33. Re1 {[%clk
0:00:09.8]} 33... Qh6 {[%clk 0:00:29]} 34. h4 {[%clk 0:00:06.6]} 34... Qg6
{[%clk 0:00:29.4]} 35. Qf4 {[%clk 0:00:07.5]} 35... b2 {[%clk 0:00:29.9]} 36.
Nd2 {[%clk 0:00:08.7]} 36... Bc2 {[%clk 0:00:29.7]} 37. Be4 {[%clk 0:00:06.5]}
37... Bxe4 {[%clk 0:00:30.2]} 38. Nxe4 {[%clk 0:00:07.5]} 38... Kf8 {[%clk
0:00:17.9]} 39. h5 {[%clk 0:00:04.8]} 39... Qg7 {[%clk 0:00:15.7]} 40. Kg2
{[%clk 0:00:04]} 40... h6 {[%clk 0:00:15.6]} 41. Rf1 {[%clk 0:00:05]} 41... a4
{[%clk 0:00:15.5]} 42. g4 {[%clk 0:00:06.2]} 42... a3 {[%clk 0:00:16.4]} 43. g5
{[%clk 0:00:07.5]} 43... a2 {[%clk 0:00:17.1]} 44. g6 {[%clk 0:00:07.4]} 44...
a1=Q {[%clk 0:00:11.7]} 45. Qxf7+ {[%clk 0:00:08.5]} 45... Qxf7 {[%clk
0:00:12.7]} 46. Rxf7+ {[%clk 0:00:10.4]} 46... Kg8 {[%clk 0:00:14.4]} 47. Rh7
{[%clk 0:00:11.3]} 47... b1=Q {[%clk 0:00:13.2]} 0-1